fUSD/lending_fUSD_20240118
["ID","MTS","AMOUNT","RATE_DAILY","PERIOD"]
[312030388,1705562488134,-150.0,0.0004125,30]
[312030389,1705562488156,-150.0,0.00041283,30]
[312030390,1705562488182,-150.0,0.00041318,30]
[312030391,1705562488204,-510.0,0.00041369,120]
[312030392,1705562488226,-1000.0,0.0004137,120]
[312030393,1705562488249,-150.0,0.000414,30]
[312030394,1705562488272,-500.0,0.00041438,30]
[312030395,1705562488295,-1000.0,0.00041438,30]
[312030396,1705562488319,-150.0,0.00041441,120]
[312030397,1705562488343,-150.0,0.00041478,30]
[312030398,1705562488366,-150.0,0.00041625,30]
[312030399,1705562488389,-510.0,0.00041643,120]
[312030400,1705562488412,-150.0,0.00041674,30]
[312030401,1705562488436,-150.29262219,0.0004168,60]
[312030402,1705562488460,-1000.0,0.00041712,30]
[312030403,1705562488483,-150.0,0.00041727,30]
[312030404,1705562488505,-150.0,0.00041786,30]
[312030405,1705562488527,-3318.72429495,0.000418,39]
[312030406,1705562488551,-207.0,0.00041847,32]
[312030407,1705562488574,-150.0,0.0004185,30]
[312030408,1705562488598,-150.0,0.00041858,120]
[312030409,1705562488621,-400.0,0.00041863,120]
[312030410,1705562488645,-150.0,0.0004187,30]
[312030411,1705562488668,-1860.75593898,0.000419,60]
[312030412,1705562488689,-181.14438064,0.000419,30]
[312030413,1705562488712,-178.95890268,0.000419,120]
[312030414,1705562488735,-4116.0,0.000419,30]
[312030415,1705562488762,-510.0,0.00041917,120]
[312030416,1705562488785,-350.0,0.00041973,120]
[312030417,1705562488809,-500.0,0.00041986,30]
[312030418,1705562488833,-1000.0,0.00041986,30]
[312030419,1705562488857,-500.0,0.00041987,33]
[312030420,1705562488880,-500.0,0.00041987,32]
[312030421,1705562488903,-500.0,0.0004199,60]
[312030422,1705562488928,-501.64449796,0.00042,30]
[312030423,1705562488951,-1607.90238213,0.00042,60]
[312030424,1705562488975,-361.83460759,0.00042,120]
[312030425,1705562489000,-1088.45605455,0.00042,120]
[312030426,1705562489022,-2982.0,0.00042,90]
[312030427,1705562489045,-8351.0,0.00042,90]
[312030428,1705562489068,-1000.0,0.00042,36]
[312030429,1705562489095,-300.0,0.00042,43]
[312030430,1705562489118,-295.0,0.00042,30]
[312030431,1705562489141,-5000.0,0.00042,40]
[312030432,1705562489165,-623.0,0.00042,120]
[312030433,1705562489189,-150.0,0.00042,30]
[312030434,1705562489211,-150.0,0.00042,30]
[312030435,1705562489239,-21000.0,0.00042,30]
[312030436,1705562489424,-283.0,0.00042,120]
[312030437,1705562489448,-200.0,0.00042,120]
[312030438,1705562489470,-200.0,0.00042,120]
[312030439,1705562489492,-200.0,0.00042,120]
[312030440,1705562489515,-200.0,0.00042,120]
[312030441,1705562489538,-200.0,0.00042,120]
[312030442,1705562489561,-200.0,0.00042,120]
[312030443,1705562489585,-200.0,0.00042,30]
[312030444,1705562489608,-1000.0,0.00042028,30]
[312030445,1705562489632,-150.0,0.00042065,30]
[312030446,1705562489655,-150.0,0.00042136,30]
[312030447,1705562489679,-150.0,0.00042188,30]
[312030448,1705562489702,-510.0,0.00042191,120]
[312030449,1705562489726,-1000.0,0.0004226,30]
[312030450,1705562489750,-150.0,0.00042261,30]
[312030451,1705562489773,-150.0,0.000423,30]
[312030452,1705562489795,-5000.0,0.000424,41]
[312030453,1705562489819,-150.0,0.00042429,30]
[312030454,1705562489843,-150.0,0.00042452,120]
[312030455,1705562489868,-150.0,0.00042457,30]
[312030456,1705562489892,-510.0,0.00042465,120]
[312030457,1705562489915,-5048.59,0.00042465,30]
[312030458,1705562489938,-5048.59,0.00042465,30]
[312030459,1705562489961,-5048.59,0.00042465,30]
[312030460,1705562489984,-5048.59,0.00042465,30]
[312030461,1705562490006,-5048.59,0.00042465,30]
[312030462,1705562490028,-5048.59,0.00042465,30]
[312030463,1705562490050,-5048.59,0.00042465,30]
[312030464,1705562490072,-5048.59,0.00042465,30]
[312030465,1705562490097,-5048.59,0.00042465,30]
[312030466,1705562490120,-5048.59,0.00042465,30]
[312030467,1705562490144,-5048.59,0.00042465,30]
[312030468,1705562490169,-5048.59,0.00042465,30]
[312030469,1705562490194,-5048.59,0.00042465,30]
[312030470,1705562490217,-5048.59,0.00042465,30]
[312030471,1705562490240,-5048.59,0.00042465,30]
[312030472,1705562490263,-5048.59,0.00042465,30]
[312030473,1705562490286,-5048.59,0.00042465,30]
[312030474,1705562490308,-5048.59,0.00042465,30]
[312030475,1705562490331,-5048.59,0.00042465,30]
[312030476,1705562490354,-5048.59,0.00042465,30]
[312030477,1705562490376,-5048.59,0.00042465,30]
[312030478,1705562490398,-5048.59,0.00042465,30]
[312030479,1705562490420,-5048.59,0.00042465,30]
[312030480,1705562490442,-5048.59049214,0.00042465,30]
[312030481,1705562490465,-163.80881954,0.0004247,30]
[312030482,1705562490487,-163.80881954,0.0004247,30]
[312030483,1705562490508,-163.80881954,0.0004247,30]
[312030484,1705562490530,-163.80881954,0.0004247,30]
[312030485,1705562490553,-163.80881954,0.0004247,30]
[312030486,1705562490577,-163.80881954,0.0004247,30]
[312030487,1705562490600,-163.80881954,0.0004247,30]
[312030488,1705562490622,-163.8,0.0004247,30]
[312030489,1705562490647,-150.29539068,0.0004247,30]
[312030490,1705562490673,-150.29539068,0.0004247,30]
[312030491,1705562490697,-150.29,0.0004247,30]
[312030492,1705562490720,-161.8554379,0.0004247,30]
[312030493,1705562490742,-161.8554379,0.0004247,30]
[312030494,1705562490765,-161.8554379,0.0004247,30]
[312030495,1705562490787,-161.8554379,0.0004247,30]
[312030496,1705562490810,-161.8554379,0.0004247,30]
[312030497,1705562490834,-161.85,0.0004247,30]
[312030498,1705562490858,-194.73319958,0.0004247,30]
[312030499,1705562490881,-194.73319958,0.0004247,30]
[312030500,1705562490904,-194.73319958,0.0004247,30]
[312030501,1705562490926,-194.73319958,0.0004247,30]
[312030502,1705562490949,-194.73319958,0.0004247,30]
[312030503,1705562490971,-194.73319958,0.0004247,30]
[312030504,1705562490995,-194.73319958,0.0004247,30]
[312030505,1705562491019,-194.73319958,0.0004247,30]
[312030506,1705562491043,-194.73319958,0.0004247,30]
[312030507,1705562491068,-194.73319958,0.0004247,30]
[312030508,1705562491091,-194.73319958,0.0004247,30]
[312030509,1705562491114,-194.73319958,0.0004247,30]
[312030510,1705562491137,-194.73319958,0.0004247,30]
[312030511,1705562491161,-194.73319958,0.0004247,30]
[312030512,1705562491184,-194.73319958,0.0004247,30]
[312030513,1705562491207,-194.73319958,0.0004247,30]
[312030514,1705562491229,-194.73319958,0.0004247,30]
[312030515,1705562491253,-194.73319958,0.0004247,30]
[312030516,1705562491276,-194.73319958,0.0004247,30]
[312030517,1705562491300,-194.73,0.0004247,30]
[312030518,1705562491325,-170.72108217,0.0004247,30]
[312030519,1705562491348,-170.72108217,0.0004247,30]
[312030520,1705562491371,-170.72108217,0.0004247,30]
[312030521,1705562491394,-170.72108217,0.0004247,30]
[312030522,1705562491417,-170.72108217,0.0004247,30]
[312030523,1705562491439,-170.72108217,0.0004247,30]
[312030524,1705562491462,-170.72108217,0.0004247,30]
[312030525,1705562491484,-170.72108217,0.0004247,30]
[312030526,1705562491507,-170.72108217,0.0004247,30]
[312030527,1705562491529,-170.72108217,0.0004247,30]
[312030528,1705562491553,-170.72108217,0.0004247,30]
[312030529,1705562491576,-170.72108217,0.0004247,30]
[312030530,1705562491600,-170.72108217,0.0004247,30]
[312030531,1705562491623,-170.72108217,0.0004247,30]
[312030532,1705562491647,-170.72108217,0.0004247,30]
[312030533,1705562491671,-170.72108217,0.0004247,30]
[312030534,1705562491695,-170.72108217,0.0004247,30]
[312030535,1705562491718,-170.72108217,0.0004247,30]
[312030536,1705562491742,-170.72108217,0.0004247,30]
[312030537,1705562491779,-170.72,0.0004247,30]
[312030538,1705562491804,-5000.0,0.000425,35]
[312030539,1705562491991,-515.94382438,0.00042534,30]
[312030540,1705562492030,-1000.0,0.00042534,30]
[312030541,1705562492054,-150.0,0.00042545,30]
[312030542,1705562492078,-348.01047431,0.00042546,120]
[312030543,1705562492102,-1700.48353617,0.000426,120]
[312030544,1705562492126,-150.0,0.00042652,30]
[312030545,1705562492149,-2454.96392121,0.00042687,30]
[312030546,1705562492172,-3665.0,0.000427,92]
[312030547,1705562492195,-816.2452302,0.00042725,90]
[312030548,1705562492219,-510.0,0.00042739,120]
[312030549,1705562492243,-1756.01154378,0.0004275,120]
[312030550,1705562492267,-2052.0,0.0004275,30]
[312030551,1705562492291,-150.0,0.0004275,30]
[312030552,1705562492316,-150.0,0.0004275,30]
[312030553,1705562492338,-150.0,0.0004275,30]
[312030554,1705562492361,-150.0,0.0004275,30]
[312030555,1705562492383,-150.0,0.0004275,30]
[312030556,1705562492405,-150.0,0.0004275,30]
[312030557,1705562492428,-150.0,0.0004275,30]
[312030558,1705562492451,-150.0,0.0004275,30]
[312030559,1705562492473,-400.0,0.00042795,120]
[312030560,1705562492497,-1000.0,0.00042808,30]
[312030561,1705562492520,-150.0,0.00042848,30]
[312030562,1705562492543,-150.0,0.00042955,30]
[312030563,1705562492566,-350.0,0.00042959,120]
[312030564,1705562492590,-500.0,0.00042987,35]
[312030565,1705562492613,-500.0,0.00042987,34]
[312030566,1705562492636,-500.0,0.0004299,60]
[312030567,1705562492659,-769.70606018,0.00043,30]
[312030568,1705562492683,-471.78933872,0.00043,120]
[312030569,1705562492708,-300.0,0.00043,44]
[312030570,1705562492733,-3166.0,0.00043,30]
[312030571,1705562492756,-677.38881801,0.00043,60]
[312030572,1705562492779,-1000.0,0.00043,39]
[312030573,1705562492801,-1000.0,0.00043,30]
[312030574,1705562492826,-30000.0,0.00043,60]
[312030575,1705562492857,-2657.1217219,0.00043,30]
[312030576,1705562492888,-2324.07700346,0.00043,30]
[312030577,1705562492913,-165.8786031,0.00043,120]
[312030578,1705562492938,-2200.0,0.00043,90]
[312030579,1705562492962,-20000.0,0.00043,60]
[312030580,1705562492987,-20000.0,0.00043,45]
[312030581,1705562493012,-20360.16406888,0.00043,60]
[312030582,1705562493038,-5000.0,0.00043,42]
[312030583,1705562493063,-75000.0,0.00043,120]
[312030584,1705562493090,-165.0,0.00043,90]
[312030585,1705562493113,-696.6955189,0.00043,30]
[312030586,1705562493136,-510.0,0.00043013,120]
[312030587,1705562493160,-1000.0,0.00043042,30]
[312030588,1705562493184,-150.0,0.00043043,30]
[312030589,1705562493208,-150.0,0.00043071,30]
[312030590,1705562493233,-1000.0,0.00043082,30]
[312030591,1705562493258,-190.0539,0.000432,30]
[312030592,1705562493282,-153.0,0.000432,30]
[312030593,1705562493305,-150.0,0.000432,30]
[312030594,1705562493330,-150.0,0.00043239,30]
[312030595,1705562493353,-510.0,0.00043287,120]
[312030596,1705562493377,-201.42591571,0.000433,30]
[312030597,1705562493400,-201.77637242,0.000433,120]
[312030598,1705562493425,-150.0,0.00043313,30]
[312030599,1705562493449,-1000.0,0.00043356,30]
[312030600,1705562493473,-150.0,0.00043364,30]
[312030601,1705562493498,-204.66691907,0.00043381,30]
[312030602,1705562493523,-5000.0,0.000434,43]
[312030603,1705562493552,-150.0,0.00043435,30]
[312030604,1705562493582,-2654.76316387,0.000435,120]
[312030605,1705562493609,-20000.0,0.000435,30]
[312030606,1705562493636,-150.0,0.000435,30]
[312030607,1705562493661,-150.0,0.000435,30]
[312030608,1705562493687,-510.0,0.00043561,120]
[312030609,1705562493713,-1365.92108919,0.000436,30]
[312030610,1705562493739,-150.0,0.0004363,30]
[312030611,1705562493764,-150.0,0.0004365,30]
[312030612,1705562493789,-150.0,0.00043694,120]
[312030613,1705562493820,-150.0,0.00043714,30]
[312030614,1705562493847,-400.0,0.00043726,120]
[312030615,1705562493872,-150.0,0.00043773,30]
[312030616,1705562493899,-618.82128131,0.00043798,60]
[312030617,1705562493923,-1275.38644846,0.00043798,60]
[312030618,1705562493948,-164.2339658,0.000438,30]
[312030619,1705562493973,-150.0,0.00043826,30]
[312030620,1705562493999,-510.0,0.00043835,120]
[312030621,1705562494024,-5000.0,0.00043835,30]
[312030622,1705562494049,-334.99727585,0.00043864,60]
[312030623,1705562494075,-334.99727585,0.00043867,60]
[312030624,1705562494104,-285.73501114,0.00043868,60]
[312030625,1705562494129,-150.0,0.00043875,30]
[312030626,1705562494165,-285.73501114,0.00043876,60]
[312030627,1705562494189,-285.73501114,0.00043878,60]
[312030628,1705562494214,-334.99727585,0.00043882,60]
[312030629,1705562494238,-506.94695361,0.000439,60]
[312030630,1705562494262,-1000.0,0.00043904,30]
[312030631,1705562494287,-350.0,0.00043945,120]
[312030632,1705562494312,-195.88558845,0.0004395,120]
[312030633,1705562494343,-5000.0,0.00043972,35]
[312030634,1705562494370,-500.0,0.00043987,37]
[312030635,1705562494397,-500.0,0.00043987,36]
[312030636,1705562494424,-573.5,0.0004399,60]
[312030637,1705562494450,-2658.55384551,0.00043995,30]
[312030638,1705562494475,-1250.0,0.00043998,31]
[312030639,1705562494503,-1427.59989814,0.00044,120]
[312030640,1705562494528,-3073.47679372,0.00044,30]
[312030641,1705562494552,-1850.969996,0.00044,60]
[312030642,1705562494582,-435.05563487,0.00044,30]
[312030643,1705562494874,-521.70746126,0.00044,120]
[312030644,1705562494901,-1757.43364242,0.00044,30]
[312030645,1705562494930,-300.0,0.00044,45]
[312030646,1705562494956,-247.05328812,0.00044,60]
[312030647,1705562494982,-455.76797677,0.00044,30]
[312030648,1705562495010,-229.36371648,0.00044,30]
[312030649,1705562495037,-1000.0,0.00044,42]
[312030650,1705562495067,-285.0,0.00044,30]
[312030651,1705562495099,-103188.82673957,0.00044,30]
[312030652,1705562495126,-2608.0,0.00044,30]
[312030653,1705562495151,-1076.62320978,0.00044,30]
[312030654,1705562495178,-183.31786405,0.00044,30]
[312030655,1705562495204,-2421.58735003,0.00044,31]
[312030656,1705562495229,-5000.0,0.00044,44]
[312030657,1705562495258,-161.0,0.00044,60]
[312030658,1705562495288,-200.0,0.00044,30]
[312030659,1705562495321,-150.0,0.00044022,30]
[312030660,1705562495346,-1000.0,0.00044056,30]
[312030661,1705562495371,-582.411359,0.000441,120]
[312030662,1705562495396,-1279.06469544,0.000441,120]
[312030663,1705562495421,-150.0,0.000441,30]
[312030664,1705562495446,-510.0,0.00044109,120]
[312030665,1705562495471,-5000.0,0.00044109,40]
[312030666,1705562495496,-150.0,0.00044182,30]
[312030667,1705562495523,-150.0,0.00044217,30]
[312030668,1705562495548,-5000.0,0.00044246,45]
[312030669,1705562495576,-501.44912861,0.0004425,120]
[312030670,1705562495600,-150.0,0.0004425,30]
[312030671,1705562495629,-150.0,0.0004425,30]
[312030672,1705562495654,-1000.0,0.000443,120]
[312030673,1705562495678,-153.0,0.000443,30]
[312030674,1705562495701,-150.0,0.00044357,30]
[312030675,1705562495724,-510.0,0.00044383,120]
[312030676,1705562495750,-5000.0,0.00044383,50]
[312030677,1705562495774,-756.30426402,0.000444,30]
[312030678,1705562495798,-1000.0,0.000444,30]
[312030679,1705562495824,-150.0,0.00044413,30]
[312030680,1705562495851,-169000.0,0.0004443,30]
[312030681,1705562495881,-150.0,0.00044438,30]
[312030682,1705562495910,-207.0,0.0004444,36]
[312030683,1705562495935,-1000.0,0.00044452,30]
[312030684,1705562495959,-1291.28873629,0.000445,60]
[312030685,1705562495983,-320000.0,0.000445,30]
[312030686,1705562496008,-1000.0,0.000445,120]
[312030687,1705562496032,-5000.0,0.0004452,55]
[312030688,1705562496056,-150.0,0.0004455,30]
[312030689,1705562496083,-200.0,0.0004457,120]
[312030690,1705562496113,-706.831784,0.00044575,30]
[312030691,1705562496137,-706.831784,0.00044575,30]
[312030692,1705562496161,-706.831784,0.00044575,30]
[312030693,1705562496190,-706.831784,0.00044575,30]
[312030694,1705562496215,-521.89192967,0.00044575,30]
[312030695,1705562496239,-152.68893766,0.00044575,30]
[312030696,1705562496264,-196.1590829,0.00044575,30]
[312030697,1705562496291,-200.0,0.00044587,120]
[312030698,1705562496315,-150.0,0.00044591,30]
[312030699,1705562496342,-150.0,0.000446,120]
[312030700,1705562496371,-204.29,0.000446,120]
[312030701,1705562496403,-150.0,0.00044609,30]
[312030702,1705562496427,-510.0,0.00044657,120]
[312030703,1705562496449,-5000.0,0.00044657,60]
[312030704,1705562496472,-400.0,0.00044658,120]
[312030705,1705562496495,-1220009.61673167,0.0004468,120]
[312030706,1705562502760,-614.9137422,0.00038,30]
[312030707,1705562503002,-743.79161877,0.0004,30]
[312030708,1705562503027,-500.0,0.0004052,30]
[312030709,1705562503063,-150.0,0.00042,30]
[312030710,1705562503097,-1188405.1549704,0.0004468,120]
[312030711,1705562503121,-10000.0,0.0004474,60]
[312030712,1705562503143,-477.21006359,0.0004475,30]
[312030713,1705562503166,-10119.95279675,0.0004476,30]
[312030714,1705562503190,-5000.0,0.00044794,65]
[312030715,1705562503212,-281.2794,0.000448,30]
[312030716,1705562503234,-50000.0,0.000448,30]
[312030717,1705562503257,-313.8304,0.000448,30]
[312030718,1705562503280,-1000.0,0.000448,120]
[312030719,1705562503302,-627.59096921,0.000448,120]
[312030720,1705562503326,-150.0,0.00044804,30]
[312030721,1705562503348,-165.0,0.0004484,90]
[312030722,1705562503370,-849071.70975281,0.0004488,30]
[312030723,1705562503393,-779.57266506,0.00044888,30]
[312030724,1705562503415,-11864.73006108,0.000449,30]
[312030725,1705562503437,-154.39737114,0.000449,30]
[312030726,1705562503460,-90000.0,0.000449,30]
[312030727,1705562503483,-1028.0258759,0.000449,30]
[312030728,1705562503505,-510.0,0.00044931,120]
[312030729,1705562503527,-5000.0,0.00044931,70]
[312030730,1705562503549,-350.0,0.00044932,120]
[312030731,1705562503572,-195.88558845,0.0004495,120]
[312030732,1705562503599,-2830.0,0.00044978,60]
[312030733,1705562503622,-2328.0211888,0.0004498,30]
[312030734,1705562503645,-400.0,0.00044986,120]
[312030735,1705562503668,-500.0,0.00044987,39]
[312030736,1705562503692,-500.0,0.00044987,38]
[312030737,1705562503714,-1000.0,0.00044999,120]
[312030738,1705562503736,-349.03404724,0.00044999,30]
[312030739,1705562503758,-9777.233265,0.00044999,120]
[312030740,1705562503781,-63597.05631,0.00044999,120]
[312030741,1705562503805,-1000.0,0.00045,120]
[312030742,1705562503830,-1000.0,0.00045,30]
[312030743,1705562503854,-689215.6099136,0.00045,120]
[312030744,1705562508809,-3230.64313048,0.0004,30]
[312030745,1705562508859,-349.49910354,0.000433,30]
[312030746,1705562508890,-295983.34940684,0.00045,120]
[312030747,1705562508913,-1000.0,0.00045,120]
[312030748,1705562508939,-3000.0,0.00045,30]
[312030749,1705562508962,-5000.0,0.00045,30]
[312030750,1705562508985,-205.33114507,0.00045,30]
[312030751,1705562509009,-971.100929,0.00045,120]
[312030752,1705562509031,-1314.66206005,0.00045,30]
[312030753,1705562509053,-1000.0,0.00045,120]
[312030754,1705562509075,-2000.0,0.00045,35]
[312030755,1705562509101,-1000.0,0.00045,35]
[312030756,1705562509124,-11099.438027,0.00045,30]
[312030757,1705562509147,-18000.0,0.00045,120]
[312030758,1705562509170,-2045.72527639,0.00045,30]
[312030759,1705562509193,-541.53487353,0.00045,120]
[312030760,1705562509215,-5000.0,0.00045,120]
[312030761,1705562509239,-9844.0,0.00045,120]
[312030762,1705562509264,-156.58457399,0.00045,30]
[312030763,1705562509288,-10000.0,0.00045,40]
[312030764,1705562509312,-1009.16248345,0.00045,120]
[312030765,1705562509338,-600.33806517,0.00045,120]
[312030766,1705562509361,-7097.77920986,0.00045,30]
[312030767,1705562509387,-945.07025191,0.00045,30]
[312030768,1705562509414,-171.73374053,0.00045,120]
[312030769,1705562509436,-160.85080277,0.00045,120]
[312030770,1705562509460,-2000.0,0.00045,30]
[312030771,1705562509486,-300.0,0.00045,46]
[312030772,1705562509513,-200.0,0.00045,60]
[312030773,1705562509536,-150.999996,0.00045,120]
[312030774,1705562509560,-3464.91266504,0.00045,30]
[312030775,1705562509584,-406.50173575,0.00045,30]
[312030776,1705562509607,-285.68391606,0.00045,120]
[312030777,1705562509630,-395.11566447,0.00045,30]
[312030778,1705562509653,-2275.50806048,0.00045,120]
[312030779,1705562509676,-213.81714361,0.00045,120]
[312030780,1705562509699,-500.0,0.00045,30]
[312030781,1705562509721,-500.0,0.00045,30]
[312030782,1705562509744,-500.0,0.00045,30]
[312030783,1705562509767,-500.0,0.00045,30]
[312030784,1705562509789,-500.0,0.00045,30]
[312030785,1705562509812,-500.0,0.00045,30]
[312030786,1705562509837,-450.0,0.00045,30]
[312030787,1705562509859,-500.0,0.00045,30]
[312030788,1705562509881,-1500.0,0.00045,60]
[312030789,1705562509904,-1400.0,0.00045,60]
[312030790,1705562509927,-1000.0,0.00045,45]
[312030791,1705562509949,-1000.0,0.00045,45]
[312030792,1705562509972,-1000.0,0.00045,45]
[312030793,1705562509996,-1000.0,0.00045,45]
[312030794,1705562510020,-1000.0,0.00045,45]
[312030795,1705562510043,-2500.0,0.00045,30]
[312030796,1705562510069,-188.5522415,0.00045,30]
[312030797,1705562510095,-500.0,0.00045,120]
[312030798,1705562510119,-5000.0,0.00045,120]
[312030799,1705562510142,-2059891.39496911,0.00045,30]
[312030800,1705562510165,-576.0,0.00045,60]
[312030801,1705562510188,-250000.0,0.00045,50]
[312030802,1705562510210,-376.24662158,0.00045,45]
[312030803,1705562510232,-970.88242005,0.00045,30]
[312030804,1705562510254,-1344.0,0.00045,120]
[312030805,1705562510278,-5174.0,0.00045,120]
[312030806,1705562510300,-241.0,0.00045,120]
[312030807,1705562510323,-1348.0,0.00045,30]
[312030808,1705562510350,-6681.2156436,0.00045,60]
[312030809,1705562510374,-1015.8,0.00045,60]
[312030810,1705562510397,-203.0,0.00045,30]
[312030811,1705562510421,-206.0,0.00045,30]
[312030812,1705562510444,-207.0,0.00045,30]
[312030813,1705562510467,-559.55341916,0.00045,60]
[312030814,1705562510489,-293.0,0.00045,120]
[312030815,1705562510512,-1049.89,0.00045,30]
[312030816,1705562510535,-443.0001332,0.00045,30]
[312030817,1705562510558,-16000.0,0.00045,30]
[312030818,1705562510583,-2052.0,0.00045,30]
[312030819,1705562510607,-228.74120114,0.00045,30]
[312030820,1705562510631,-231.96263404,0.00045,30]
[312030821,1705562510654,-195.89406786,0.00045,30]
[312030822,1705562510677,-208.66793682,0.00045,30]
[312030823,1705562510700,-173.23725068,0.00045,30]
[312030824,1705562510725,-183.83942647,0.00045,30]
[312030825,1705562510748,-251.65498998,0.00045,30]
[312030826,1705562510773,-160.53067205,0.00045,30]
[312030827,1705562510807,-269.13582055,0.00045,30]
[312030828,1705562510837,-180.78102551,0.00045,30]
[312030829,1705562510877,-209.33423054,0.00045,30]
[312030830,1705562510909,-248.16868402,0.00045,30]
[312030831,1705562510942,-5000.0,0.00045068,75]
[312030832,1705562510970,-1000.0,0.0004507,30]
[312030833,1705562511001,-2193.7702,0.0004514,30]
[312030834,1705562511039,-510.0,0.00045205,120]
[312030835,1705562511067,-5000.0,0.00045205,80]
[312030836,1705562511099,-3964.94704384,0.00045342,85]
[312030837,1705562511129,-153.0,0.000454,30]
[312030838,1705562511157,-484.87151387,0.00045479,120]
[312030839,1705562511188,-260.16,0.000455,45]
[312030840,1705562511220,-518.51,0.000455,60]
[312030841,1705562511251,-10000.0,0.000455,45]
[312030842,1705562511277,-10000.0,0.000455,45]
[312030843,1705562511305,-237.42,0.000455,60]
[312030844,1705562511336,-307.0,0.000455,120]
[312030845,1705562511365,-1000.0,0.00045548,30]
[312030846,1705562511392,-400.0,0.00045589,120]
[312030847,1705562511419,-155.0,0.00045671,90]
[312030848,1705562511452,-300.0,0.000457,30]
[312030849,1705562511481,-2000.0,0.00045806,120]
[312030850,1705562511508,-180.70557121,0.00045806,120]
[312030851,1705562511535,-1055.58197329,0.0004588,100]
[312030852,1705562511565,-934.37771601,0.000459,30]
[312030853,1705562511595,-1178.80226389,0.000459,30]
[312030854,1705562511621,-1136.05772,0.000459,30]
[312030855,1705562511649,-149999.0,0.000459,30]
[312030856,1705562511678,-39398.97034904,0.000459,30]
[312030857,1705562516794,-155.0,0.0004,30]
[312030858,1705562516818,-347.72414458,0.0004,30]
[312030859,1705562516860,-1353.7113356,0.00042,120]
[312030860,1705562516885,-153.0,0.000429,30]
[312030861,1705562516915,-153.0,0.00044,30]
[312030862,1705562516941,-2028.26015106,0.000449,30]
[312030863,1705562516970,-153.0,0.000451,30]
[312030864,1705562516995,-110600.02965096,0.000459,30]
[312030865,1705562517019,-149999.0,0.000459,30]
[312030866,1705562517042,-149999.0,0.000459,30]
[312030867,1705562517065,-149999.0,0.000459,30]
[312030868,1705562517089,-40753.3350775,0.000459,30]
[312030869,1705562517112,-149999.0,0.000459,30]
[312030870,1705562517135,-149999.0,0.000459,30]
[312030871,1705562517160,-100003.00000001,0.000459,30]
[312030872,1705562517184,-149999.0,0.000459,30]
[312030873,1705562517207,-50001.0,0.000459,30]
[312030874,1705562517230,-4506.62905176,0.000459,30]
[312030875,1705562517256,-5171.25341048,0.000459,30]
[312030876,1705562517279,-1010.19743848,0.000459,30]
[312030877,1705562517302,-90000.0,0.000459,30]
[312030878,1705562517325,-150.0,0.000459,30]
[312030879,1705562517349,-4031.5,0.0004591,111]
[312030880,1705562517372,-350.0,0.00045918,120]
[312030881,1705562517395,-500.0,0.00045987,41]
[312030882,1705562517418,-500.0,0.0004599,60]
[312030883,1705562517442,-1000.0,0.00046,30]
[312030884,1705562517464,-384.24098963,0.00046,30]
[312030885,1705562517488,-250.0,0.00046,30]
[312030886,1705562517512,-1000.0,0.00046,120]
[312030887,1705562517536,-5000.0,0.00046,30]